Cogmind - Beta 14 @@@ ROGUE MODE // 2024.08.10 @ 17:50:05 Player: Sionnis Result: Destroyed by Y-45 Defender with Beam Rifle Performance ------------- Evolutions (0) 0 Regions Visited (3) 600 Robots Destroyed (45) 225 Value Destroyed (1275) 1275 Prototype IDs (14) 280 Alien Tech Used (0) 0 Bonus (0) 0 TOTAL SCORE: 2380 Bonus ------- None Cogmind --------- Core Integrity 0/250 Matter 236/300 Energy 176/180 System Corruption 0% Temperature Cool (85) Movement Rolling (140) Ox3 Location -8/Recycling Parts ------- > --- POWER (1) -------- Meta Core > --- PROPULSION (2) --- Subdweller Monowheel > --- UTILITY (2) ------ High-capacity Storage Unit Light Armor Plating > --- WEAPON (2) ------- Subdweller Beam Cannon Subdweller Machine Gun > --- INVENTORY (20) --- Subdweller Power Source Subdweller Monowheel Subdweller Monowheel Subdweller Monowheel Flight Unit Flight Unit Medium Storage Unit Structural Scanner Subdweller Optics Signal Interpreter ECM Suite Light Armor Plating Subdweller Laser Battle Rifle Subdweller Shrapnel Launcher Subdweller Shrapnel Launcher Subdweller Shrapnel Launcher Improved Datajack Makeshift Sword Scrap Shield Fragment (45) Peak State ------------ > --- POWER ------------ Meta Core > --- PROPULSION ------- Light Treads Light Treads Spiked Treads > --- UTILITY ---------- High-capacity Storage Unit Scrap Shield > --- WEAPON ----------- Subdweller Laser Subdweller Beam Cannon Light Cannon > --- INVENTORY -------- Light Treads Subdweller Monowheel Subdweller Monowheel Flight Unit Flight Unit Medium Storage Unit Signal Interpreter ECM Suite Light Armor Plating Light Armor Plating Light Armor Plating Light Armor Plating Light Armor Plating Subdweller Shrapnel Launcher Subdweller Shrapnel Launcher Subdweller Shrapnel Launcher Makeshift Sword [Rating: 29] Favorites ----------- Power Light Ion Engine Engine Light Ion Engine Power Core Meta Core Propulsion Light Treads Treads Light Treads Wheel Subdweller Monowheel Utility High-capacity Storage Unit Device Improved Heat Sink Storage High-capacity Storage Unit Protection Light Armor Plating Weapon Assault Rifle Energy Gun Medium Laser Energy Cannon Subdweller Beam Cannon Ballistic Gun Assault Rifle Ballistic Cannon Light Cannon Launcher Subdweller Shrapnel Launcher Impact Weapon Hammer Build | -11 -10 -10 -8 ------- Run | Yrd Mat Sub Rec Slots Evolved . | . . . . Power . | . . . . Propulsion . | . . . . Utility . | . . . . Weapon . | . . . . Parts Attached 44 | 6 15 21 2 Power 4 | 1 1 2 . Engine 3 | 1 1 1 . Core 1 | . . 1 . Reactor . | . . . . Propulsion 9 | 2 2 5 . Treads 7 | 2 2 3 . Leg . | . . . . Wheel 2 | . . 2 . Hover . | . . . . Flight . | . . . . Utility 12 | 1 5 5 1 Device 2 | . 2 . . Storage 3 | 1 2 . . Processor . | . . . . Hackware . | . . . . Protection 7 | . 1 5 1 Artifact . | . . . . Weapon 19 | 2 7 9 1 Energy Gun 4 | 2 . 2 . Energy Cannon 2 | . . 2 . Ballistic Gun 8 | . 5 2 1 Ballistic Cannon 1 | . 1 . . Launcher 3 | . . 3 . Special Weapon . | . . . . Impact Weapon 1 | . 1 . . Slashing Weapon . | . . . . Piercing Weapon . | . . . . Special Melee Weapon . | . . . . Unidentified Prototypes . | . . . . Parts Lost 10 | . 2 8 . Power 1 | . . 1 . Propulsion 4 | . 1 3 . Utility 3 | . 1 2 . Weapon 2 | . . 2 . Highest Loss Streak 5 | . 2 5 . To Critical Strikes . | . . . . Average Slot Usage (%) 96 | . 96 97 85 Engine 9 | . 14 6 . Core 4 | . . 6 14 Treads 23 | . 27 22 . Wheel 3 | . . 4 14 Device 1 | . 3 . . Storage 13 | . 14 13 14 Protection 10 | . 7 12 14 Energy Gun 2 | . 3 2 . Energy Cannon 6 | . . 11 14 Ballistic Gun 12 | . 21 6 . Ballistic Cannon 5 | . 2 7 . Launcher 1 | . . . 13 Peak Build Rating 29 | 6 10 29 24 Average Rating 14 | 4 7 18 24 On Entrance 9 | . 6 8 24 Naked Turns . | . . . . Heaviest Build 79 | 12 51 79 65 Greatest Support 60 | 40 40 60 20 Greatest Overweight (x) 20 | . 1 20 3 Average Overweight (x) 1 | . . 1 3 Largest Inventory Capacity 20 | 8 20 20 20 Average Capacity 19 | 7 18 20 20 Most Carried 20 | 3 18 20 20 Average Carried 16 | 2 13 18 19 Final Capacity 20 | 8 20 20 20 Final Carried 20 | 3 18 20 20 Class Distribution -------------------- 94% | Mutant 5% | Subdweller-Tank Dominant Class ---------------- Mutant | -10/Materials Mutant | -10/Subcaves Mutant | -8/Recycling Resources | -11 -10 -10 -8 ----------- Run | Yrd Mat Sub Rec Matter Collected 1249 | 215 521 436 77 Remotely . | . . . . Salvage Created 1407 | . 886 521 . Parts 90 | . 48 42 . Haulers Intercepted 2 | . 2 . . Recyclers Shooed 1 | . 1 . . Parts Field Recycled . | . . . . Retrieved Matter . | . . . . Parts Self-Destructed 15 | . . 15 . Prevented . | . . . . Kills | -11 -10 -10 -8 ------- Run | Yrd Mat Sub Rec Combat Hostiles Destroyed 35 | . 18 17 . Guns 24 | . 18 6 . Cannons 6 | . . 6 . AOE 5 | . . 5 . Classes Destroyed 10 | . 7 3 . Worker 1 | . 1 . . Builder 1 | . 1 . . Hauler 2 | . 2 . . Operator 1 | . 1 . . Turret 2 | . . 2 . Watcher 3 | . 3 . . Swarmer 7 | . 3 4 . Grunt 15 | . 15 . . Sentry 1 | . . 1 . Subdweller 12 | . . 12 . Best Kill Streak 6 | . 4 6 . Combat Bots Only 4 | . 2 4 . Max Kills in Single Turn 2 | . 2 2 . Gunslinging . | . . . . Exploded 2 | . . 2 . Melee . | . . . . Uniques/NPCs Destroyed . | . . . . Combat | -11 -10 -10 -8 -------- Run | Yrd Mat Sub Rec Hostile Shots Fired 154 | . 80 71 3 Missed 45 | . 22 22 1 Damage Taken 1944 | . 698 1219 27 Core 259 | . 119 125 15 Absorbed by Shields . | . . . . Regen/Repaired (Parts) 54 | . 54 . . Core Remaining (%) 100 | 100 . . . Volleys Fired 156 | . 79 75 2 Largest 3 | . 2 3 2 Hottest 175 | . 100 175 110 Shots Fired 298 | . 158 136 4 Gun 189 | . 152 35 2 Cannon 102 | . 6 94 2 Launcher 7 | . . 7 . Special . | . . . . Kinetic 195 | . 134 59 2 Thermal 103 | . 24 77 2 Explosive . | . . . . Electromagnetic . | . . . . Robot Hit Streak 15 | . 13 15 4 Robot Miss Streak 4 | . 4 2 . Penetration Max . | . . . . Secondary Targets 1 | . 1 . . Max Gunslinging Chain 1 | . 1 . . Shots Hit Robots 176 | . 101 71 4 Core Hits 70 | . 42 28 . Critical Kills 2 | . 2 . . Critical Parts Destroyed 2 | . 2 . . Critical Strikes 7 | . 4 3 . Destroy 4 | . 4 . . Blast 3 | . . 3 . Melee Attacks 1 | . 1 . . Impact 1 | . 1 . . Slashing . | . . . . Piercing . | . . . . Sneak Attacks . | . . . . Combat Hostiles . | . . . . Follow-up Attacks . | . . . . Damage Inflicted 3533 | . 1374 2068 91 Guns 1858 | . 1303 516 39 Cannons 1138 | . 71 1015 52 Explosions 537 | . . 537 . Melee . | . . . . Ramming . | . . . . Kinetic 2237 | . 1157 1041 39 Thermal 1296 | . 217 1027 52 Explosive . | . . . . Electromagnetic . | . . . . Impact . | . . . . Slashing . | . . . . Piercing . | . . . . Highest Corruption . | . . . . Average Corruption . | . . . . Corruption Purged . | . . . . Corruption Blocked . | . . . . Overload Shots . | . . . . Overflow Damage 48 | . . 48 . Projectiles . | . . . . Explosions 48 | . . 48 . Melee . | . . . . Knockbacks 3 | . 1 2 . Impact . | . . . . Kinetic 3 | . 1 2 . Secondary . | . . . . Self-Inflicted Damage . | . . . . Shots . | . . . . Rammed . | . . . . Targets Rammed . | . . . . Kicked . | . . . . Crushed . | . . . . Highest Temperature 555 | . 132 555 76 Average Temperature 114 | . 41 151 47 Received Heat Transfer 1103 | . 387 707 9 Effects 7 | . . 7 . Shutdowns 2 | . . 2 . Interference 1 | . . 1 . Short Circuit 2 | . . 2 . Damage (minor) 2 | . . 2 . Siege Activations . | . . . . Robots Corrupted . | . . . . Combat Hostiles . | . . . . Parts Fried . | . . . . Impact Corruptions . | . . . . Robots Melted . | . . . . Combat Hostiles . | . . . . Parts Melted 3 | . 2 1 . Heat Transferred 2064 | . 629 1361 74 Parts Sabotaged . | . . . . Parts Stolen . | . . . . Parts Stripped . | . . . . Power Chain Reactions . | . . . . Alert | -11 -10 -10 -8 ------- Run | Yrd Mat Sub Rec Peak Influence 245 | . 245 . 91 Initial 91 | . . . 91 Average 73 | . 73 . 91 Maximum Alert Level 1 | . 1 . . Low Security (%) 98 | 100 98 . 100 Level 1 1 | . 1 . . Level 2 . | . . . . Level 3 . | . . . . Level 4 . | . . . . Level 5 . | . . . . High Security . | . . . . Max Security . | . . . . Squads Dispatched 5 | . 5 . . Investigation 4 | . 4 . . Extermination . | . . . . Reinforcement 1 | . 1 . . Assault . | . . . . Garrison . | . . . . Intercept . | . . . . Searches Triggered . | . . . . Construction Impeded . | . . . . Haulers Reinforced . | . . . . Active Scanning Responses . | . . . . Cargo Convoy Interrupts . | . . . . Stealth | -11 -10 -10 -8 --------- Run | Yrd Mat Sub Rec Distress Signals . | . . . . Communications Jammed . | . . . . Distress Signals . | . . . . Times Spotted 50 | . 24 25 1 Peak Tracking Total 6 | . 3 6 1 Tactical Retreats 5 | . 2 3 . Traps | -11 -10 -10 -8 ------- Run | Yrd Mat Sub Rec Traps Triggered 5 | . 2 3 . Indirectly . | . . . . Trap Hack Attempts . | . . . . Triggered . | . . . . Disarmed . | . . . . Reprogrammed . | . . . . Reused . | . . . . Traps Extracted . | . . . . Installed . | . . . . Triggered . | . . . . Machines | -11 -10 -10 -8 ---------- Run | Yrd Mat Sub Rec Machines Disabled 6 | . 1 5 . Max in Single Turn 3 | . 1 3 . Machines Repaired . | . . . . Machines Dismantled . | . . . . Machines Sabotaged . | . . . . Overloaded Fab Kills . | . . . . Hacking | -11 -10 -10 -8 --------- Run | Yrd Mat Sub Rec Machines Accessed 9 | . 8 1 . Terminals 5 | . 5 . . Fabricators . | . . . . Repair Stations 1 | . 1 . . Recycling Units 2 | . 2 . . Scanalyzers . | . . . . Garrison Access . | . . . . Total Hacks 25 | . 24 1 . Successful 16 | . 15 1 . Failed 8 | . 8 . . Catastrophic 3 | . 3 . . Database Lockouts 1 | . 1 . . Manual 17 | . 17 . . Terminals 20 | . 20 . . Fabricators . | . . . . Repair Stations 2 | . 2 . . Recycling Units 2 | . 2 . . Scanalyzers . | . . . . Garrison Access . | . . . . Terminal Hacks 4 | . 3 1 . Robot Analysis 1 | . 1 . . Prototype ID Bank 1 | . 1 . . Branch Access Points 1 | . 1 . . Derelict Proto ID Bank 1 | . . 1 . Fabricator Hacks . | . . . . Repair Station Hacks 2 | . 2 . . Scan Component 1 | . 1 . . Repair 1 | . 1 . . Recycling Unit Hacks . | . . . . Scanalyzer . | . . . . Garrison Access Hacks . | . . . . Unauthorized Hacks 10 | . 10 . . Terminals 8 | . 8 . . Botnet 2 | . 2 . . Operators 1 | . 1 . . Skim 5 | . 5 . . Fabricators . | . . . . Repair Stations . | . . . . Recycling Units 2 | . 2 . . Tunnel 2 | . 2 . . Scanalyzers . | . . . . Garrison Access . | . . . . Data Cores Recovered . | . . . . Used . | . . . . Hacking Detections 6 | . 6 . . Full Trace Events . | . . . . Feedback Events . | . . . . Feedback Blocked . | . . . . Robot Schematics Acquired . | . . . . Robots Built . | . . . . Authchips . | . . . . Time . | . . . . Total Robot Build Rating . | . . . . Part Schematics Acquired . | . . . . Parts Built . | . . . . Authchips . | . . . . Time . | . . . . Total Part Build Rating . | . . . . Parts Repaired 1 | . 1 . . Time 26 | . 26 . . Parts Recycled . | . . . . Recycled Matter . | . . . . Retrieved Matter . | . . . . Retrieved Components . | . . . . Parts Scanalyzed . | . . . . Part Schematics Acquired . | . . . . Parts Damaged . | . . . . Bothacking | -11 -10 -10 -8 ------------ Run | Yrd Mat Sub Rec Used RIF Installer . | . . . . Robots Hacked . | . . . . Non-combat . | . . . . Combat . | . . . . Robot Hacks Applied . | . . . . Relay Couplers Released . | . . . . Fabnet Peak Effective % . | . . . . Robots Rewired . | . . . . Allies Hacked . | . . . . Hacks Repelled . | . . . . Allies | -11 -10 -10 -8 -------- Run | Yrd Mat Sub Rec Total Allies . | . . . . Largest Group . | . . . . Highest-Rated Group . | . . . . Highest-Rated Ally . | . . . . Total Orders . | . . . . Ally Attacks . | . . . . Total Damage . | . . . . Kills . | . . . . Allies Corrupted . | . . . . Allies Melted . | . . . . Intel | -11 -10 -10 -8 ------- Run | Yrd Mat Sub Rec Robot Analysis Total 1 | . 1 . . Derelict Logs Recovered 2 | . . 2 . Drone Launches . | . . . . Drone Recoveries . | . . . . Exploration | -11 -10 -10 -8 ------------- Run | Yrd Mat Sub Rec Turns Passed 5124 | 68 2061 2708 287 Spaces Moved 2074 | 40 656 1184 194 Core 15 | 6 . 9 . Treads 1287 | 34 656 597 . Legs . | . . . . Wheels 772 | . . 578 194 Hover . | . . . . Flight . | . . . . Fastest Speed 50 | 50 160 130 140 Average Speed 201 | 143 226 199 140 Slowest Speed 1050 | 160 240 1050 140 Overloaded Moves . | . . . . Propulsion Burnouts . | . . . . Robots Hopped . | . . . . Cave-ins Triggered . | . . . . Exploration Rate (%) 52 | 5 93 68 42 Regions Visited 3 Branch Regions 2 Pre-discovered Areas 4 | . 3 1 . Known Exits Taken 1 | . 1 . . Unknown Exits Taken 2 | 1 . 1 . Scrap Searched 6 | . . 6 . Spaces Dug 1 | . 1 . . Terrain Destroyed 83 | . 1 82 . Melee 1 | . 1 . . Projectile 2 | . . 2 . AOE 80 | . . 80 . Terrain Rammed . | . . . . Walls Destroyed . | . . . . Machines Disabled . | . . . . Actions | -11 -10 -10 -8 --------- Run | Yrd Mat Sub Rec Total 2726 | 48 1069 1402 207 Wait 379 | . 292 82 5 Move 2071 | 39 655 1183 194 Hop . | . . . . Pick Up 43 | 3 17 21 2 Fast Attach 16 | 6 7 3 . Attach 13 | . 1 12 . Detach 5 | . 2 3 . Swap 15 | . 7 6 2 Drop 26 | . 8 16 2 Fire 156 | . 79 75 2 Melee 1 | . 1 . . Ram . | . . . . Kick . | . . . . Crush . | . . . . Escape Stasis . | . . . . Rewire . | . . . . Trap . | . . . . Miscellaneous 1 | . . 1 . Route ------- -11/Scrapyard -10/Materials (discovered 5 exits: *Mat x3 / Min / *Sub) -10/Subcaves (discovered 2 exits: [*Mat] / [*Rec]) -8/Recycling History --------- Turn | Location | Event 6 | -11/Scrapyard | Discovered new exit (range 14) 69 | -11/Scrapyard | Entered Materials 306 | -10/Materials | Build established: Mutant 481 | -10/Materials | Discovered new exit (range 15) 823 | -10/Materials | Discovered new exit (range 10) 867 | -10/Materials | Central database locked down 867 | -10/Materials | Identified exit to Mines 1243 | -10/Materials | Identified exit to Materials 1243 | -10/Materials | Identified exit to Subcaves 1306 | -10/Materials | Learned 4 Recycling zone layouts 1360 | -10/Materials | Learned Storage machine intel 1432 | -10/Materials | Learned location of Subcaves (-10) 1474 | -10/Materials | Learned 2 Mines zone layouts 1524 | -10/Materials | Learned Storage emergency access door positions 1742 | -10/Materials | Repaired Lgt. Treads 2130 | -10/Materials | Entered Subcaves 2365 | -10/Subcaves | Learned Materials trap positions 2671 | -10/Subcaves | Disturbed a concealed Subdweller 2835 | -10/Subcaves | Core integrity fell below 50% 3048 | -10/Subcaves | Shifting Twisted Machinery released Battle Rifle 3094 | -10/Subcaves | Shifting Twisted Machinery released Sub. Shrapnel Launcher 3214 | -10/Subcaves | Shifting Twisted Machinery released Sub. Shrapnel Launcher 3426 | -10/Subcaves | Visited 4L-MR0's lab 3449 | -10/Subcaves | Found Meta Core 3450 | -10/Subcaves | Attached Meta Core, gained temporary slots: Propulsion, Utility, Weapon 3730 | -10/Subcaves | Ambushed by Subdweller buried in earth 3740 | -10/Subcaves | Build established: Subdweller-Tank 3751 | -10/Subcaves | Ambushed by Subdweller buried in earth 3787 | -10/Subcaves | Lost 5 parts (2n1u2w) 3928 | -10/Subcaves | Discovered new exit (range 8) 3964 | -10/Subcaves | Shifting Twisted Machinery released Piercing Trap 4049 | -10/Subcaves | Build established: Mutant 4374 | -10/Subcaves | Shifting Twisted Machinery released Sub. Monowheel 4385 | -10/Subcaves | Shifting Twisted Machinery released Sub. Laser 4514 | -10/Subcaves | A swath of the cavern ceiling suddenly collapsed 4793 | -10/Subcaves | Core integrity fell below 20% 4820 | -10/Subcaves | Discovered new exit (range 12) 4838 | -10/Subcaves | Entered Recycling 4839 | -8/Recycling | Met a Zionite searching for Scraptown 5125 | -8/Recycling | Destroyed by Y-45 Defender with Beam Rifle Last Messages --------------- LOCATION=UNKNOWN GOAL=ESCAPE MT-D36(z): "You there! You wouldn't happen to know where Scraptown is, do you?" Loading 4 Recycling zones... MT-D36(z): "I've heard great things about that place, but almost no one seems to know where to find it, only that you access it somewhere from Recycling here." MT-D36(z): "Anyway I've been here searching too long already, time to slink back to the caves before I'm caught. You'd best do the same." Dropped Lgt. Armor Plating. Acquired Imp. Datajack. R-06 Scavenger collects Lgt. Armor Plating. Dropped Broken Spk. Treads. Acquired Structural Scanner. R-06 Scavenger collects Broken Spk. Treads. Acquired 77 matter. Y-45 Defender springs to life. Map ----- +----------------------------------------------------+ | ??????????????????????????????????????? | | ??????????????????????????????????????? | | ??????????????????????????????????????? | | ??????????????????????????????????????? | | ??????????????????????????????????????? | | ??????????????????????????????????????? | | ??????????????????????????????????????? | | ??????????????????????????????????????? | | ??????????????????????????????????????? | | ??????????????????????????????????????? | | ??????????????????????????????????????? | | ??????????????????????????????????????? | | ??????????????????????????????????????? | | ?????????????????????????????????????## | | ???????????????????????????????????### | | ???????????????????????????????????#"" | | ??????????????#????????????????????#"Y | | ?????????????# #???????????????????#"" | | ????????????? r???????????????????### | | ?????????????# #???????????#####?????# | | ?????????????# #???????????# ####### | | ?????????????#Y#???????????# + | | ?????????????# #???????????# ####### | | ?# #####+### #???????????## ##?????# | | ?# #???#####????# #??????# | | ?# @#####"T"###### #??????# | | ?# #??????## | | ???# ####### #???????? | | ???????????# """ """ """ #???????? | | ???????????# """ """ """ #???????? | | ???????????# """ """ """ #???????? | | ???????????# #???????? | | ???????????# #???????? | | ???????????# ################???????? | | ???????????# ???????????????????????? | | ???????????# ???????????????????????? | | ???????????# ???????????????????????? | | ??????????? ???????????????????????? | | ??????????? ???????????????????????? | | ??????????? ???????????????????????? | | ??????????? ???????????????????????? | | ??????????????????????????????????????? | | ??????????????????????????????????????? | | ??????????????????????????????????????? | | ??????????????????????????????????????? | | ??????????????????????????????????????? | | ??????????????????????????????????????? | | ????????????????????????? + #???????? | | ????????????????????????? # #??????## | | ????????????????????????? # ######## | +----------------------------------------------------+ Best States ------------- Heat Dissipation 39 Energy Generation 17 Energy Capacity 180 Matter Stores 300 Matter Capacity 300 Sight Range 16 Terrain Scan Density 10 Armor Coverage 800 Evasion (%) 40 Recoil Reduction 3 Item Schematics ----------------- None Robot Schematics ------------------ None Fabricated ------------ Nothing Alien Tech Used ----------------- None Achievements -------------- None Challenges ------------ None Game ------ Seed PlatingMiningExpander Manual? 0 Play Time 00:23:37 Cumulative 555.9 hours Start 2024.08.10 @ 17:28:02 End 2024.08.10 @ 17:50:05 Sessions 1 Manual Loads 0 Difficulty Rogue Special Mode None Game No. 309 Rogue 309 Adventurer 0 Explorer 0 Win Type - Total 36 Types 22/2/4/3/1/1/1/1/1 Lore% 95 Gallery% 97 Achievement% 98 Wizard Run 0 Options --------- Layout 1 ASCII 0 Keyboard 0 Movement Numpad Keybinds 0 Fullscreen 1 Font 24/Smallcaps Map View 50x35 Zoom Use 0% Tactical HUD 1 Map Filters NONE Filters NONE Steam 1 RUN: 002dd254-7839-4e8e-ada5-5549c784e78f